bitfinex/quotes_ETHUSD_20250702
["timestamp","ask_amount","ask_price","bid_price","bid_amount"]
[1751454060947,0.97650691,2456.7,2456.6,0.9187]
[1751454061171,0.2032,2456.9,2456.6,0.9187]
[1751454061172,0.97650691,2456.8,2456.6,0.9187]
[1751454061371,0.2032,2456.9,2456.6,0.9187]
[1751454061562,0.97666797,2456.8,2456.6,0.9187]
[1751454061762,0.2032,2456.9,2456.6,0.9187]
[1751454061962,0.97666882,2456.8,2456.6,0.9187]
[1751454062152,0.97669344,2456.7,2456.6,0.9187]
[1751454062352,0.97669344,2456.8,2456.6,2.32508216]
[1751454062551,0.97686039,2456.8,2456.7,0.2032]
[1751454062776,0.01,2456.9,2456.7,0.2032]
[1751454064676,0.9769131,2456.8,2456.7,6.7542]
[1751454064972,0.9207,2456.9,2456.7,0.2032]
[1751454066272,0.97701706,2456.8,2456.6,0.02]
[1751454066475,0.9107,2456.7,2456.6,0.02]
[1751454066678,2.43780022,2456.7,2456.6,0.02]
[1751454066879,18.80972179,2456.7,2456.6,0.02]
[1751454067040,0.55,2456.6,2456.5,0.02]
[1751454067376,2.43780022,2456.6,2456.5,0.02]
[1751454067943,3.65883135,2456.6,2456.5,0.02]
[1751454068382,2.43780022,2456.6,2456.5,0.02]
[1751454069157,3.65861045,2456.6,2456.5,0.02]
[1751454069496,2.43780022,2456.6,2456.5,0.02]
[1751454070195,4.06485666,2456.6,2456.5,0.02]
[1751454070494,14.06476979,2456.6,2456.5,0.02]
[1751454070699,12.43780022,2456.6,2456.5,0.02]
[1751454071291,14.06419225,2456.6,2456.5,0.02]
[1751454074593,18.80972179,2456.6,2456.5,0.02]
[1751454075998,20.43190878,2456.6,2456.5,0.02]
[1751454076500,18.80735427,2456.6,2456.5,0.02]
[1751454080201,12.4354327,2456.6,2456.5,0.02]
[1751454082398,12.64788644,2456.6,2456.5,0.02]
[1751454087204,12.74239028,2456.6,2456.5,0.02]
[1751454087402,2.19239028,2456.6,2456.5,0.02]
[1751454088507,1.1779327,2456.7,2456.5,0.02]
[1751454090287,0.9747327,2456.6,2456.5,0.02]
[1751454095230,2.19239028,2456.6,2456.5,0.02]
[1751454099410,0.9747327,2456.6,2456.5,7.57232157]
[1751454099614,0.9747327,2456.6,2456.5,8.32955373]
[1751454100208,0.9747327,2456.7,2456.6,0.9737]
[1751454100726,0.9747327,2456.7,2456.6,1.1769]
[1751454102126,0.9747327,2456.8,2456.6,1.1769]
[1751454102337,0.9747327,2456.7,2456.6,1.1769]
[1751454102535,0.9747327,2456.8,2456.6,1.1769]
[1751454102736,0.01,2456.9,2456.6,1.1769]
[1751454102947,0.97580028,2456.8,2456.6,1.1769]
[1751454103143,0.97580028,2456.7,2456.6,1.1769]
[1751454103337,0.97580028,2456.8,2456.6,1.69989324]
[1751454103638,0.97580028,2456.7,2456.6,1.69989324]
[1751454103833,0.97580028,2456.8,2456.6,1.69989324]
[1751454104039,0.97580028,2456.7,2456.6,1.69989324]
[1751454104243,0.97580028,2456.8,2456.6,1.69989324]
[1751454104908,0.97580028,2456.7,2456.6,1.69989324]
[1751454105141,0.97580028,2456.8,2456.6,1.69989324]
[1751454107065,0.97580028,2456.8,2456.7,8.17742627]
[1751454107355,0.01,2456.9,2456.8,0.9206]
[1751454107559,0.01,2456.9,2456.8,1.1238]
[1751454109364,0.01,2456.9,2456.8,7.54512157]
[1751454109550,0.01,2456.9,2456.8,9.63902352]
[1751454109858,0.01,2456.9,2456.8,19.63902352]
[1751454113370,0.01,2456.9,2456.8,26.19702352]
[1751454123567,0.01,2457.1,2457.0,7.34792157]
[1751454123776,0.01,2457.1,2457.0,14.10612157]
[1751454123974,0.01,2457.1,2457.0,16.25391049]
[1751454131183,0.01,2457.1,2457.0,26.25391049]
[1751454133387,0.01,2457.6,2457.1,10.0]
[1751454133593,0.01,2457.6,2457.5,6.37192157]
[1751454133766,0.01,2457.6,2457.5,13.12712157]
[1751454135091,0.01,2457.6,2457.5,6.7552]
[1751454135463,0.01,2457.6,2457.5,14.63843373]
[1751454135664,0.01,2457.6,2457.5,15.59923373]
[1751454136065,0.01,2457.6,2457.5,14.63843373]
[1751454136277,0.01,2457.6,2457.5,13.12712157]
[1751454136603,0.98580028,2457.6,2457.5,13.12712157]
[1751454136787,0.98580028,2457.6,2457.5,6.7562]
[1751454139577,0.98580028,2457.6,2457.5,6.7582]
[1751454142616,0.01,2457.6,2457.5,13.13012157]
[1751454142970,0.01,2457.6,2457.5,13.79131419]
[1751454143200,0.01,2457.6,2457.5,14.69741419]
[1751454146093,0.01,2457.6,2457.5,24.69741419]
[1751454151417,0.01,2457.6,2457.5,11.77049262]
[1751454151594,0.01,2457.6,2457.5,24.69941419]
[1751454154708,0.01,2457.6,2457.5,18.32749262]
[1751454154895,0.01,2457.6,2457.5,24.69941419]
[1751454166238,0.01,2457.6,2457.5,10.86439262]
[1751454166531,0.01,2457.6,2457.5,23.79131419]
[1751454166897,0.01,2457.6,2457.5,24.72201419]
[1751454171127,0.01,2458.1,2457.7,0.9395]
[1751454171329,0.01,2458.1,2458.0,17.31142157]
[1751454171539,0.01,2458.1,2458.0,24.07462157]
[1751454171934,0.01,2458.1,2458.0,19.6897]
[1751454172226,0.01,2458.1,2458.0,18.7502]
[1751454173434,0.01,2458.1,2458.0,25.12212157]
[1751454173612,0.01,2458.1,2458.0,28.31485873]
[1751454176860,0.01,2458.1,2458.0,19.76785873]
[1751454177035,0.01,2458.1,2458.0,28.31485873]
[1751454177436,0.01,2458.1,2458.0,21.94293716]
[1751454179038,0.01,2458.1,2458.0,21.94193716]
[1751454179627,0.01,2458.1,2458.0,18.7492]
[1751454180437,0.01,2458.1,2458.0,0.2032]
[1751454180639,0.9079,2458.1,2458.0,6.7612]
[1751454181240,0.01,2458.1,2458.0,6.7612]
[1751454182325,0.01,2458.1,2458.0,13.13312157]
[1751454182523,0.01,2458.1,2458.0,14.74099373]
[1751454186463,0.01,2458.1,2458.0,1.81107216]
[1751454186620,0.9214,2458.1,2458.0,6.7622]
[1751454186821,0.01,2458.1,2458.0,6.7622]
[1751454190839,0.9114,2458.0,2457.9,0.02]
[1751454191021,0.9114,2458.0,2457.9,6.587]
[1751454194056,0.9114,2458.0,2457.9,0.02]
[1751454197034,1.88727418,2458.0,2457.9,0.02]
[1751454209876,0.9114,2458.0,2457.9,0.02]
[1751454210861,1.88727418,2458.0,2457.9,0.02]
[1751454211175,1.89727418,2458.0,2457.9,0.02]
[1751454211373,8.81919575,2458.0,2457.9,0.02]
[1751454211969,10.03903848,2458.0,2457.9,0.02]
[1751454213980,3.66711691,2458.0,2457.9,0.02]
[1751454214567,2.44727418,2458.0,2457.9,0.02]
[1751454219482,2.44706112,2458.0,2457.9,0.02]
[1751454219690,3.66663752,2458.0,2457.9,0.02]
[1751454220353,1.89706112,2458.0,2457.9,0.02]
[1751454220566,0.98566112,2458.0,2457.9,0.02]
[1751454221556,1.18886112,2458.0,2457.9,0.02]
[1751454224812,0.98566112,2458.0,2457.9,0.02]
[1751454226560,1.18886112,2458.0,2457.9,0.02]
[1751454227893,0.2132,2458.0,2457.9,0.02]
[1751454228200,1.18962143,2458.0,2457.9,0.02]
[1751454242191,0.98642143,2458.0,2457.9,0.9685]
[1751454246438,0.98642143,2458.0,2457.9,0.02]
[1751454265352,0.98642143,2458.0,2457.9,0.9438]
[1751454265521,0.98642143,2458.0,2457.9,1.147]
[1751454265717,0.01,2458.0,2457.9,1.147]
[1751454267124,0.01,2458.0,2457.9,2.2617]
[1751454270841,0.01,2458.0,2457.9,12.2617]
[1751454274843,0.01,2458.0,2457.9,17.0117]
[1751454275249,0.01,2458.0,2457.9,17.31267004]
[1751454275574,0.01,2458.0,2457.9,25.5527]
[1751454275952,0.01,2458.0,2457.9,17.0117]
[1751454276152,0.01,2458.0,2457.9,25.5527]
[1751454277879,0.01,2458.0,2457.9,20.8027]
[1751454278864,0.01,2458.0,2457.9,12.2617]
[1751454279155,0.01,2458.0,2457.9,20.8137]
[1751454279348,0.01,2458.0,2457.9,12.2617]
[1751454279549,0.01,2458.0,2457.9,20.8137]
[1751454280186,0.01,2458.0,2457.9,12.2617]
[1751454280392,0.01,2458.0,2457.9,10.8137]
[1751454280696,0.01,2458.0,2457.9,8.8257]
[1751454284948,0.01,2458.0,2457.9,0.2232]
[1751454285585,0.01,2458.0,2457.9,6.582]
[1751454285782,0.9216,2458.0,2457.9,6.582]
[1751454285987,0.9216,2458.0,2457.9,6.583]
[1751454286581,1.1248,2458.0,2457.9,6.583]
[1751454289691,1.1248,2458.0,2457.9,0.02]
[1751454289894,1.1248,2458.0,2457.9,0.2232]
[1751454289895,0.9216,2458.0,2457.9,0.2232]
[1751454292171,1.89650773,2458.0,2457.9,0.2232]
[1751454292492,1.89650773,2458.0,2457.9,6.585]
[1751454292694,1.89650773,2458.0,2457.9,0.02]
[1751454299526,0.9216,2458.0,2457.9,0.02]
[1751454300134,1.89650773,2458.0,2457.9,0.02]
[1751454300530,0.9216,2458.0,2457.9,0.02]
[1751454300735,1.89650773,2458.0,2457.9,0.02]
[1751454303442,0.98490773,2458.0,2457.9,0.02]
[1751454303648,0.01,2458.0,2457.9,0.02]
[1751454305332,0.98490773,2458.0,2457.9,0.02]
[1751454308030,2.08830773,2458.0,2457.9,0.02]
[1751454308534,1.62617813,2458.3,2457.9,6.39192157]
[1751454308707,0.01,2458.6,2458.2,6.37192157]
[1751454308907,0.01,2458.6,2458.4,6.37192157]
[1751454309226,0.01,2458.6,2458.5,8.35228384]
[1751454309533,0.01,2458.6,2458.5,6.637]
[1751454310718,0.01,2458.6,2458.5,7.5432]
[1751454310925,0.01,2458.6,2458.5,9.13401216]
[1751454311130,0.01,2458.6,2458.5,19.13401216]
[1751454312321,0.01,2458.6,2458.5,20.55207884]
[1751454312843,0.01,2458.6,2458.5,19.13401216]
[1751454313212,0.01,2458.6,2458.5,12.49701216]
[1751454313437,0.01,2458.6,2458.5,21.16901216]
[1751454314118,0.01,2458.6,2458.5,12.49701216]
[1751454314340,0.01,2458.6,2458.5,21.16801216]
[1751454314655,0.01,2458.6,2458.5,21.16701216]
[1751454315038,0.01,2458.6,2458.5,27.53893373]
[1751454316650,0.01,2458.6,2458.5,18.86893373]
[1751454316846,0.01,2458.6,2458.5,1.59081216]
[1751454317030,0.01,2458.6,2458.5,7.5707]
[1751454317439,3.2332554,2461.7,2460.3,30.0]
[1751454317643,3.2332554,2461.7,2458.7,10.01]
[1751454317644,4.06544534,2463.1,2461.7,10.9377]
[1751454317848,4.06544534,2463.1,2463.0,7.30962157]
[1751454318160,5.69162348,2463.7,2463.3,0.55]
[1751454318366,0.5,2464.1,2463.1,4.288]
[1751454318565,0.53578625,2463.6,2463.5,0.7524]
[1751454318859,7.64068057,2463.6,2463.5,0.2024]
[1751454319165,7.64068057,2463.6,2462.3,7.19]
[1751454319477,7.31672157,2463.5,2462.4,8.17433666]
[1751454319680,6.37192157,2463.0,2461.9,10.0]
[1751454319887,0.9069,2463.3,2461.9,10.0]
[1751454320191,0.323959,2463.6,2462.1,10.0]
[1751454320494,0.323959,2463.6,2461.8,15.70818924]
[1751454320495,0.55,2462.9,2461.8,15.70818924]
[1751454320649,0.55,2462.9,2462.2,7.475]
[1751454320979,0.55,2462.7,2462.2,7.476]
[1751454321595,0.9058,2462.8,2461.6,10.0]
[1751454321886,0.9058,2462.8,2461.8,10.0]
[1751454322449,0.9058,2462.8,2461.9,7.473]
[1751454322648,0.9058,2462.8,2461.4,10.9548]
[1751454322649,0.55,2462.7,2461.4,10.9548]
[1751454322850,0.55,2462.7,2461.5,7.463]
[1751454323090,0.55,2462.7,2461.3,9.774]
[1751454323091,0.55,2462.5,2461.3,9.774]
[1751454323578,0.55,2462.5,2461.4,7.46]
[1751454323776,0.55,2462.5,2461.3,9.774]
[1751454323976,0.55,2462.3,2461.4,7.461]
[1751454324650,0.55,2462.3,2461.0,0.9324]
[1751454324976,0.55,2462.3,2461.1,7.456]
[1751454325278,0.55,2462.3,2461.2,10.0]
[1751454326579,0.55,2462.3,2461.3,7.448]
[1751454326876,0.55,2462.3,2461.4,7.437]
[1751454327174,0.55,2462.3,2461.5,7.435]
[1751454327383,0.55,2462.3,2461.0,10.9324]
[1751454327687,0.55,2462.3,2461.5,7.436]
[1751454327882,0.55,2462.3,2461.0,10.9324]
[1751454328082,0.55,2462.3,2461.2,10.0]
[1751454328251,0.55,2462.3,2460.5,10.0]
[1751454328582,0.55,2462.1,2460.7,10.9727]
[1751454328784,0.55,2461.9,2460.8,7.422]
[1751454329085,0.2024,2461.5,2461.1,0.2024]
[1751454334898,0.934,2462.0,2461.1,0.2024]
[1751454335104,0.2024,2461.8,2461.3,0.2024]
[1751454349730,0.2024,2461.8,2461.3,0.2224]
[1751454350495,0.41290787,2461.8,2461.3,0.2224]
[1751454351433,1.38158657,2461.8,2461.3,0.2224]
[1751454351611,0.41290787,2461.8,2461.3,0.2224]
[1751454351930,1.38158657,2461.8,2461.3,0.2224]
[1751454352132,0.41290787,2461.8,2461.3,0.2224]
[1751454352331,1.38158657,2461.8,2461.3,0.2224]
[1751454352628,0.41290787,2461.8,2461.3,0.2224]
[1751454352799,1.38158657,2461.8,2461.3,0.2224]
[1751454352996,0.21050787,2461.8,2461.3,0.02]
[1751454353232,0.2024,2461.6,2461.3,0.02]
[1751454353631,0.9686787,2461.7,2461.3,0.02]
[1751454353931,0.9686787,2461.9,2461.5,0.2024]
[1751454354438,0.9686787,2461.8,2461.5,0.2024]
[1751454354626,0.9686787,2461.9,2461.5,0.2024]
[1751454354829,0.9686787,2461.8,2461.5,0.2024]
[1751454355025,0.9686787,2461.9,2461.3,11.72994]
[1751454355228,0.934,2462.0,2461.7,0.2024]
[1751454355229,0.9686787,2461.8,2461.7,0.2024]
[1751454355406,0.934,2462.0,2461.7,0.2024]
[1751454355605,1.9026787,2462.0,2461.7,0.2024]
[1751454355817,0.934,2462.0,2461.7,0.2024]
[1751454356016,1.9026787,2462.0,2461.7,0.2024]
[1751454356219,0.934,2462.0,2461.7,0.2024]
[1751454357551,0.9686787,2462.1,2461.7,0.2024]
[1751454358166,1.0032,2462.0,2461.6,7.237]
[1751454358483,1.2056,2462.0,2461.6,7.4394]
[1751454358619,1.2056,2462.0,2461.6,0.2024]
[1751454359223,0.9686787,2461.9,2461.3,0.02]
[1751454359449,0.2024,2461.7,2461.3,0.02]
[1751454359949,1.0445,2461.6,2461.3,0.02]
[1751454360138,0.2024,2461.5,2461.3,0.02]
[1751454360627,0.42395787,2461.5,2461.3,0.02]
[1751454362946,1.39263657,2461.5,2461.3,0.02]
[1751454364326,0.42395787,2461.5,2461.3,0.02]
[1751454366146,0.55,2461.4,2461.3,0.02]
[1751454367884,0.22155787,2461.5,2461.3,0.02]
[1751454368233,0.2024,2461.4,2461.3,0.02]
[1751454368945,1.2167,2461.4,2461.3,0.02]
[1751454369861,1.7667,2461.4,2461.3,0.02]
[1751454370956,14.09786798,2461.4,2461.3,0.02]
[1751454371257,15.06654668,2461.4,2461.3,0.02]
[1751454378138,14.51654668,2461.4,2461.3,0.02]
[1751454380159,14.09786798,2461.4,2461.3,0.02]
[1751454380345,15.07017727,2461.4,2461.3,0.02]
[1751454385147,16.68858716,2461.4,2461.3,0.02]
[1751454386348,16.69051394,2461.4,2461.3,0.02]
[1751454387474,15.07017727,2461.4,2461.3,0.02]
[1751454387668,16.69066471,2461.4,2461.3,0.02]
[1751454392878,15.07017727,2461.4,2461.3,0.02]
[1751454399990,17.46795051,2461.4,2461.3,0.02]
[1751454400760,21.75595051,2461.4,2461.3,0.02]
[1751454401389,19.35817727,2461.4,2461.3,0.02]
[1751454404588,21.79283022,2461.4,2461.3,0.02]
[1751454404756,19.35817727,2461.4,2461.3,0.02]
[1751454405565,11.5481,2461.3,2461.0,0.02]
[1751454405783,22.29329377,2461.1,2461.0,0.02]
[1751454405983,23.26560306,2461.1,2461.0,0.02]
[1751454407881,20.66996626,2461.1,2461.0,0.02]
[1751454412774,24.95796626,2461.1,2461.0,0.02]
[1751454413095,20.66996626,2461.1,2461.0,0.02]
[1751454413304,0.58956574,2461.1,2461.0,0.02]
[1751454413610,7.008,2461.1,2461.0,0.02]
[1751454413907,7.558,2461.1,2461.0,0.02]
[1751454414400,0.01,2461.3,2461.0,0.02]
[1751454414579,0.01,2461.3,2461.1,0.99]
[1751454415480,0.56,2461.3,2461.1,0.99]
[1751454415682,0.01,2461.3,2461.1,0.99]
[1751454416282,0.56,2461.3,2461.1,0.99]
[1751454416925,1.77913607,2461.3,2461.1,0.99]
[1751454417389,0.56,2461.3,2461.1,0.99]
[1751454417699,10.56,2461.3,2461.1,0.99]
[1751454422699,0.01,2461.3,2461.1,0.99]
[1751454435747,0.2024,2461.2,2461.1,0.99]
[1751454443754,0.2024,2461.2,2461.0,0.02]
[1751454443947,0.85856177,2461.2,2461.0,0.02]
[1751454444948,0.2024,2461.2,2461.0,0.02]
[1751454445147,6.89921775,2461.1,2461.0,0.02]
[1751454445529,0.55,2461.1,2461.0,0.02]
[1751454445936,0.2024,2461.2,2461.0,0.02]
[1751454451738,0.01,2461.3,2461.1,0.7557]
[1751454453768,0.01,2461.3,2461.2,0.2024]
[1751454453963,0.01,2461.3,2461.2,1.75453178]
[1751454455562,0.01,2461.3,2461.2,1.0218]
[1751454456440,0.01,2461.3,2461.2,17.37101775]
[1751454460072,0.2124,2462.3,2461.2,17.37101775]
[1751454460073,0.2124,2462.3,2461.3,0.7833]
[1751454460259,0.2124,2462.3,2461.9,0.2024]
[1751454460465,0.01,2462.3,2462.0,0.7833]
[1751454460663,0.01,2462.3,2462.0,0.9857]
[1751454464391,0.01,2462.3,2461.7,0.818]
[1751454464392,7.17761775,2462.3,2461.7,0.818]
[1751454464566,7.38001775,2462.3,2461.8,0.2024]
[1751454464764,1.0308,2462.3,2461.8,0.2024]
[1751454468791,6.34921775,2462.1,2461.8,0.2024]
[1751454468995,0.2024,2461.9,2461.5,0.2024]
[1751454471491,7.16421775,2461.8,2461.2,0.7998]
[1751454471695,6.55161775,2461.6,2461.2,0.2024]
[1751454472390,0.2024,2461.6,2461.2,0.2024]
[1751454472972,0.2024,2461.6,2461.3,0.8008]
[1751454473681,11.3516,2462.1,2461.3,0.8008]
[1751454473884,0.2024,2461.8,2461.3,1.0032]
[1751454479137,0.7881,2461.7,2461.3,0.2024]
[1751454479906,0.2024,2461.6,2461.1,0.2024]
[1751454480910,0.8028,2461.9,2461.0,0.7922]
[1751454481211,0.2024,2461.8,2461.3,0.2024]
[1751454482079,0.2024,2461.8,2461.4,0.8258]
[1751454484620,0.8244,2462.1,2461.4,0.8258]
[1751454484780,0.2024,2461.8,2461.4,1.0282]
[1751454484980,8.14575043,2462.1,2461.4,0.8258]
[1751454485207,0.2024,2462.0,2461.5,0.2024]
[1751454486913,0.2024,2462.0,2461.4,0.8258]
[1751454486914,6.34921775,2462.0,2461.4,0.8258]
[1751454487223,0.2024,2461.7,2461.3,0.2024]
[1751454493407,0.775,2461.9,2461.2,10.0]
[1751454493612,0.9774,2461.9,2461.5,0.2024]
[1751454497695,0.9774,2461.9,2461.5,0.9721]
[1751454497696,0.2024,2461.9,2461.5,0.9721]
[1751454498897,0.7774,2461.8,2461.2,16.794]
[1751454499098,0.2024,2461.7,2461.2,16.9964]
[1751454499294,0.756,2461.6,2461.2,0.2024]
[1751454499497,10.756,2461.6,2461.0,0.02]
[1751454499721,8.05973953,2461.5,2461.0,0.02]
[1751454500027,6.34921775,2461.3,2461.0,0.02]
[1751454500231,0.8313,2461.2,2461.0,0.02]
[1751454500440,0.55,2461.1,2461.0,0.02]
[1751454503339,0.8313,2461.2,2461.0,0.02]
[1751454503711,0.55,2461.4,2461.0,0.02]
[1751454503913,0.8065,2461.4,2461.0,0.02]
[1751454504414,1.79243761,2461.7,2461.0,0.02]
[1751454504614,0.8175,2461.7,2461.0,0.02]
[1751454509550,0.2024,2461.5,2461.0,0.2224]
[1751454511449,0.55,2461.6,2461.0,0.02]
[1751454511630,0.2024,2461.3,2461.0,0.02]
[1751454512220,1.3677,2461.2,2461.0,0.02]
[1751454514055,0.8253,2461.4,2461.0,0.02]
[1751454514228,0.8514282,2461.3,2461.0,0.02]
[1751454520260,0.3014282,2461.3,2461.0,0.02]
[1751454522363,0.2024,2461.1,2461.0,0.02]
[1751454531075,0.7524,2461.1,2461.0,0.02]
[1751454531251,7.10149785,2461.1,2461.0,0.02]
[1751454531438,7.94007854,2461.1,2461.0,0.02]
[1751454533355,1.59098069,2461.1,2461.0,0.02]
[1751454538250,2.56386157,2461.1,2461.0,0.02]
[1751454538471,1.59098069,2461.1,2461.0,0.02]
[1751454538666,2.56386157,2461.1,2461.0,0.02]
[1751454538869,1.59098069,2461.1,2461.0,0.02]
[1751454539057,9.74015942,2461.1,2461.0,0.02]
[1751454539847,3.39106157,2461.1,2461.0,0.02]
[1751454540046,1.72528088,2461.1,2461.0,0.02]
[1751454540951,0.7524,2461.1,2461.0,0.02]
[1751454541152,1.72528088,2461.1,2461.0,0.02]
[1751454544263,2.94138198,2461.1,2461.0,0.02]
[1751454545688,1.72528088,2461.1,2461.0,0.02]
[1751454545896,2.84802316,2461.1,2461.0,0.02]
[1751454546558,1.17528088,2461.1,2461.0,0.02]
[1751454547583,1.17528088,2461.1,2461.0,0.81]
[1751454554334,0.97288088,2461.1,2461.0,0.81]
[1751454554610,0.01,2461.3,2461.0,0.2224]
[1751454554796,0.98288088,2461.3,2461.1,0.7711]
[1751454555110,0.01,2461.3,2461.2,1.013]
[1751454562215,0.01,2461.3,2461.0,0.8291]
[1751454562750,0.01,2461.3,2461.0,1.93225]
[1751454564105,0.01,2461.3,2461.2,0.8091]
[1751454572547,0.01,2461.3,2461.1,0.2224]
[1751454583456,0.01,2461.3,2461.2,0.8077]
[1751454588199,0.01,2461.3,2461.2,7.5617]
[1751454588544,0.01,2461.3,2461.2,8.34211]
[1751454597222,0.01,2461.3,2461.2,8.33911]
[1751454597528,0.01,2461.3,2461.2,8.32190616]
[1751454601424,0.01,2461.3,2461.2,24.70670785]
[1751454601738,0.01,2461.3,2461.2,24.90910785]
[1751454603640,0.01,2461.9,2461.3,0.8157]
[1751454603842,0.01,2461.9,2461.8,7.18159785]
[1751454604143,0.01,2461.9,2461.8,14.13299785]
[1751454605614,0.01,2461.9,2461.8,24.13299785]
[1751454609719,0.01,2461.9,2461.8,10.2024]
[1751454609920,0.01,2461.9,2461.8,10.0]
[1751454610164,0.01,2461.9,2461.8,16.746]
[1751454611353,0.01,2461.9,2461.8,16.745]
[1751454612956,0.01,2461.9,2461.8,6.745]
[1751454615641,0.01,2461.9,2461.5,0.2024]
[1751454615844,0.8227,2461.8,2461.5,0.2024]
[1751454616068,0.2024,2461.7,2461.3,0.2024]
[1751454616539,0.2024,2461.7,2461.4,6.743]
[1751454617970,0.2024,2461.7,2461.3,0.2024]
[1751454618143,0.2024,2461.7,2461.4,6.743]
[1751454620682,0.2024,2461.7,2461.3,0.2024]
[1751454620867,0.2024,2461.7,2461.3,6.9454]
[1751454623764,0.2024,2461.7,2461.3,6.9444]
[1751454626675,0.2024,2461.7,2461.3,0.2024]
[1751454626977,0.2024,2461.4,2461.1,6.761]
[1751454630678,0.2024,2461.4,2461.1,0.02]
[1751454630890,0.01,2461.7,2461.3,10.0]
[1751454631179,0.01,2461.7,2461.4,8.73685764]
[1751454631379,0.01,2461.7,2461.4,2.38775979]
[1751454631582,0.7981,2461.7,2461.2,0.7885]
[1751454631778,0.7981,2461.7,2461.4,6.74]
[1751454632386,0.7981,2461.7,2461.1,0.02]
[1751454632555,0.7981,2461.7,2461.3,6.74]
[1751454634181,0.7981,2461.7,2461.1,10.02]
[1751454634385,0.7981,2461.7,2461.2,8.45413978]
[1751454634701,0.7981,2461.7,2461.3,6.739]
[1751454635497,0.01,2461.7,2461.4,0.7595]
[1751454636396,0.01,2461.7,2461.4,7.10859785]
[1751454638603,0.01,2461.7,2461.4,0.7595]
[1751454638902,0.01,2461.7,2461.4,2.31577376]
[1751454639601,0.01,2461.7,2461.4,1.55627376]
[1751454639912,0.01,2461.7,2461.5,6.737]
[1751454640766,0.01,2461.7,2461.6,0.2024]
[1751454643638,0.01,2461.7,2461.6,7.36589785]
[1751454643934,0.01,2461.7,2461.6,8.93181501]
[1751454661064,0.01,2461.9,2461.6,8.93181501]
[1751454661065,0.01,2461.9,2461.7,10.7624]
[1751454661225,1.62551476,2463.2,2461.7,10.7624]
[1751454661226,0.8302,2463.1,2462.5,6.34909785]
[1751454661422,0.8302,2463.1,2462.6,7.6928]
[1751454662554,0.8302,2463.1,2462.6,14.04189785]
[1751454662758,0.8302,2463.1,2462.6,15.44608764]
[1751454663173,0.8073,2463.3,2462.6,15.44608764]
[1751454664242,0.323959,2463.6,2462.8,0.7543]
[1751454664462,1.131259,2463.6,2463.2,10.0]
[1751454664947,1.131259,2463.6,2463.3,6.726]
[1751454665270,1.131259,2463.6,2462.8,0.7543]
[1751454665571,0.7838,2463.5,2462.9,6.726]
[1751454665773,0.7838,2463.5,2462.6,2.09]
[1751454666076,0.7889,2463.3,2462.7,6.726]
[1751454666270,6.34909785,2463.4,2462.4,2.09]
[1751454666271,0.7889,2463.1,2462.8,6.726]
[1751454666587,0.7889,2463.1,2462.3,0.02]
[1751454666977,0.761,2462.7,2462.4,6.725]
[1751454667564,0.761,2462.7,2462.5,6.725]
[1751454667860,0.01,2462.7,2462.5,6.725]
[1751454668089,0.01,2462.7,2462.5,9.03440979]
[1751454670148,0.01,2462.7,2462.5,2.30940979]
[1751454670373,0.01,2462.7,2462.6,6.725]
[1751454670572,0.01,2462.7,2462.4,10.0]
[1751454670793,0.01,2462.7,2462.6,6.725]
[1751454671801,0.8093,2462.6,2462.3,0.02]
[1751454671986,0.8093,2462.6,2462.4,6.724]
[1751454672366,0.8093,2462.6,2462.3,0.02]
[1751454672576,0.8093,2462.6,2462.4,6.724]
[1751454673212,0.01,2462.7,2462.4,6.724]
[1751454674181,0.01,2462.7,2462.5,0.2024]
[1751454682416,0.01,2462.7,2462.6,0.2024]
[1751454686898,0.01,2462.7,2462.6,6.9234]
[1751454687097,0.01,2462.7,2462.5,0.2024]
[1751454687329,0.01,2462.7,2462.6,6.721]
[1751454688715,0.01,2462.7,2462.5,0.2024]
[1751454688917,0.01,2462.7,2462.6,6.721]
[1751454690307,0.01,2462.7,2462.5,6.9434]
[1751454690506,0.01,2462.7,2462.5,6.9424]
[1751454691416,0.01,2462.7,2462.5,0.2224]
[1751454691838,0.7625,2462.6,2462.5,0.02]
[1751454692047,0.9649,2462.6,2462.5,0.02]
[1751454697240,0.9649,2462.6,2462.5,0.42]
[1751454715160,1.93493949,2462.6,2462.5,0.42]
[1751454715477,2.25104355,2462.6,2462.5,0.42]
[1751454730457,1.17243949,2462.6,2462.5,0.42]
[1751454733284,0.2024,2462.6,2462.5,0.42]
[1751454735577,0.2024,2462.6,2462.5,1.2044]
[1751454735776,0.01,2462.7,2462.5,1.2044]
[1751454740526,0.01,2462.7,2462.5,0.42]
[1751454741582,7.69729785,2462.6,2462.5,0.42]
[1751454741786,9.53507107,2462.6,2462.5,0.42]
[1751454742413,19.54337107,2462.6,2462.5,0.42]
[1751454742821,21.16888583,2462.6,2462.5,0.42]
[1751454743181,19.54337107,2462.6,2462.5,0.42]
[1751454743688,21.16888583,2462.6,2462.5,0.42]
[1751454744487,19.54337107,2462.6,2462.5,0.42]
[1751454745118,13.19427322,2462.6,2462.5,0.42]